fUSD/lending_fUSD_20250226
["ID","MTS","AMOUNT","RATE_DAILY","PERIOD"]
[354557327,1740574265031,-2913.55,0.00041369,14]
[354557328,1740574265040,-1829.01,0.00041369,14]
[354557329,1740574265049,-938.27,0.00041369,14]
[354557330,1740574265059,-1016.8,0.00041369,14]
[354557331,1740574265068,-500.0,0.00041369,14]
[354557332,1740574265077,-500.0,0.00041369,14]
[354557333,1740574265087,-2472.68,0.00041369,14]
[354557334,1740574265096,-505.75666184,0.00041369,14]
[354557335,1740574265105,-500.0,0.00041369,14]
[354557336,1740574265117,-4985.35,0.00041369,14]
[354557337,1740574265128,-1150.4,0.00041369,14]
[354557338,1740574265138,-811.16,0.00041369,14]
[354557339,1740574265147,-500.0,0.00041369,14]
[354557340,1740574265157,-3785.03,0.00041369,14]
[354557341,1740574265166,-870.9,0.00041369,14]
[354557342,1740574265176,-1473.74,0.00041369,14]
[354557343,1740574265186,-766.97,0.00041369,14]
[354557344,1740574265196,-7610.62,0.00041369,14]
[354557345,1740574265205,-500.0,0.00041369,14]
[354557346,1740574265215,-3284.96,0.00041369,14]
[354557347,1740574265224,-500.0,0.00041369,14]
[354557348,1740574265235,-500.0,0.00041369,14]
[354557349,1740574265244,-500.0,0.00041369,14]
[354557350,1740574265254,-502.08765106,0.00041369,14]
[354557351,1740574265263,-500.0,0.00041369,14]
[354557352,1740574265275,-500.0,0.00041369,14]
[354557353,1740574265284,-500.0,0.00041369,14]
[354557354,1740574265294,-500.0,0.00041369,14]
[354557355,1740574265303,-518.31,0.00041369,14]
[354557356,1740574265313,-1368.67,0.00041369,14]
[354557357,1740574265322,-4639.55,0.00041369,14]
[354557358,1740574265332,-500.0,0.00041369,14]
[354557359,1740574265341,-3829.11,0.00041369,14]
[354557360,1740574265351,-4400.63,0.00041369,14]
[354557361,1740574265363,-1922.44,0.00041369,14]
[354557362,1740574265372,-500.0,0.00041369,14]
[354557363,1740574265382,-848.55,0.00041369,14]
[354557364,1740574265391,-500.0,0.00041369,14]
[354557365,1740574265400,-576.52,0.00041369,14]
[354557366,1740574265410,-1677.73,0.00041369,14]
[354557367,1740574265419,-500.0,0.00041369,14]
[354557368,1740574265429,-500.0,0.00041369,14]
[354557369,1740574265439,-500.0,0.00041369,14]
[354557370,1740574265448,-753.8,0.00041369,14]
[354557371,1740574265458,-500.0,0.00041369,14]
[354557372,1740574265468,-500.0,0.00041369,14]
[354557373,1740574265478,-505.91044803,0.00041369,14]
[354557374,1740574265487,-2994.09,0.00041369,14]
[354557375,1740574265496,-481.48235751,0.00041369,14]
[354557376,1740574265506,-500.0,0.00041369,14]
[354557377,1740574265520,-500.0,0.00041369,14]
[354557378,1740574265529,-3537.76,0.00041369,14]
[354557379,1740574265539,-500.0,0.00041369,14]
[354557380,1740574265550,-605.88716981,0.00041369,14]
[354557381,1740574265561,-500.0,0.00041369,14]
[354557382,1740574265571,-6274.47,0.00041369,14]
[354557383,1740574265581,-770.3,0.00041369,14]
[354557384,1740574265591,-500.0,0.00041369,14]
[354557385,1740574265600,-500.0,0.00041369,14]
[354557386,1740574265610,-558.1,0.00041369,14]
[354557387,1740574265620,-544.24,0.00041369,14]
[354557388,1740574265629,-1392.89,0.00041369,14]
[354557389,1740574265639,-616.74,0.00041369,14]
[354557390,1740574265651,-500.0,0.00041369,14]
[354557391,1740574265661,-4256.07,0.00041369,14]
[354557392,1740574265671,-2959.98,0.00041369,14]
[354557393,1740574265681,-2871.01,0.00041369,14]
[354557394,1740574265690,-1946.07,0.00041369,14]
[354557395,1740574265699,-5352.91,0.00041369,14]
[354557396,1740574265708,-13150.98,0.00041369,14]
[354557397,1740574265718,-500.0,0.00041369,14]
[354557398,1740574265727,-500.0,0.00041369,14]
[354557399,1740574265736,-500.0,0.00041369,14]
[354557400,1740574265746,-1677.34,0.00041369,14]
[354557401,1740574265755,-1792.61,0.00041369,14]
[354557402,1740574265765,-500.0,0.00041369,14]
[354557403,1740574265775,-500.0,0.00041369,14]
[354557404,1740574265784,-500.0,0.00041369,14]
[354557405,1740574265793,-500.0,0.00041369,14]
[354557406,1740574265803,-500.0,0.00041369,14]
[354557407,1740574265812,-500.0,0.00041369,14]
[354557408,1740574265822,-3192.22,0.00041369,14]
[354557409,1740574265832,-1173.73,0.00041369,14]
[354557410,1740574265843,-889.81,0.00041369,14]
[354557411,1740574265853,-824.56,0.00041369,14]
[354557412,1740574265864,-500.0,0.00041369,7]
[354557413,1740574265874,-500.0,0.00041369,14]
[354557414,1740574265885,-505.05470303,0.00041369,14]
[354557415,1740574265895,-5629.36,0.00041369,14]
[354557416,1740574265905,-943.18,0.00041369,14]
[354557417,1740574265915,-500.0,0.00041369,14]
[354557418,1740574265924,-500.0,0.00041369,14]
[354557419,1740574265934,-2802.56,0.00041369,14]
[354557420,1740574265944,-3291.92,0.00041369,14]
[354557421,1740574265953,-500.0,0.00041369,14]
[354557422,1740574265962,-500.0,0.00041369,14]
[354557423,1740574265971,-312.80396349,0.00041369,14]
[354557424,1740574265981,-500.0,0.00041369,14]
[354557425,1740574265991,-1108.2,0.00041369,14]
[354557426,1740574266001,-505.30134363,0.00041369,14]
[354557427,1740574266011,-521.61,0.00041369,14]
[354557428,1740574266020,-1057.7,0.00041369,14]
[354557429,1740574266030,-977.89,0.00041369,14]
[354557430,1740574266039,-500.0,0.00041369,14]
[354557431,1740574266050,-4213.93,0.00041369,14]
[354557432,1740574266059,-771.43,0.00041369,14]
[354557433,1740574266072,-500.0,0.00041369,14]
[354557434,1740574266081,-1754.72,0.00041369,14]
[354557435,1740574266092,-500.5789245,0.00041369,14]
[354557436,1740574266101,-5852.63,0.00041369,14]
[354557437,1740574266113,-500.0,0.00041369,14]
[354557438,1740574266122,-151.0,0.00041369,14]
[354557439,1740574266132,-151.0,0.00041369,14]
[354557440,1740574266141,-500.0,0.00041369,14]
[354557441,1740574266152,-165.138364,0.00041369,14]
[354557442,1740574266162,-897.48,0.00041369,14]
[354557443,1740574266173,-1346.42,0.00041369,14]
[354557444,1740574266182,-2233.96,0.00041369,14]
[354557445,1740574266193,-1971.64,0.00041369,14]
[354557446,1740574266204,-1876.09,0.00041369,14]
[354557447,1740574266214,-2279.08,0.00041369,14]
[354557448,1740574266223,-502.35556194,0.00041369,14]
[354557449,1740574266233,-603.55,0.00041369,14]
[354557450,1740574266242,-626.46,0.00041369,14]
[354557451,1740574266251,-500.0,0.00041369,14]
[354557452,1740574266261,-500.0,0.00041369,14]
[354557453,1740574266270,-659.69,0.00041369,14]
[354557454,1740574266279,-500.0,0.00041369,14]
[354557455,1740574266289,-5224.29,0.00041369,14]
[354557456,1740574266298,-500.0,0.00041369,14]
[354557457,1740574266308,-500.0,0.00041369,14]
[354557458,1740574266317,-500.0,0.00041369,14]
[354557459,1740574266326,-2200.19,0.00041369,14]
[354557460,1740574266336,-605.97,0.00041369,14]
[354557461,1740574266345,-1331.49,0.00041369,14]
[354557462,1740574266355,-500.0,0.00041369,14]
[354557463,1740574266366,-359.33537947,0.00041369,14]
[354557464,1740574266376,-1916.48,0.00041369,14]
[354557465,1740574266385,-507.10861516,0.00041369,14]
[354557466,1740574266395,-6413.65,0.00041369,14]
[354557467,1740574266404,-500.0,0.00041369,14]
[354557468,1740574266414,-500.0,0.00041369,14]
[354557469,1740574266424,-2936.64,0.00041369,14]
[354557470,1740574266433,-500.0,0.00041369,14]
[354557471,1740574266443,-559.07,0.00041369,14]
[354557472,1740574266453,-200.0,0.00041369,7]
[354557473,1740574266463,-1794.56,0.00041369,14]
[354557474,1740574266473,-500.0,0.00041369,14]
[354557475,1740574266483,-896.93,0.00041369,14]
[354557476,1740574266494,-500.0,0.00041369,14]
[354557477,1740574266503,-2341.64,0.00041369,14]
[354557478,1740574266517,-1604.08,0.00041369,14]
[354557479,1740574266526,-4023.58,0.00041369,14]
[354557480,1740574266535,-151.0,0.00041369,14]
[354557481,1740574266545,-151.0,0.00041369,14]
[354557482,1740574266557,-151.0,0.00041369,14]
[354557483,1740574266567,-515.02,0.00041369,14]
[354557484,1740574266577,-500.0,0.00041369,14]
[354557485,1740574266587,-504.47556992,0.00041369,14]
[354557486,1740574266596,-2295.62,0.00041369,14]
[354557487,1740574266605,-190.022366,0.00041369,14]
[354557488,1740574266620,-500.0,0.00041369,14]
[354557489,1740574266629,-500.0,0.00041369,14]
[354557490,1740574266638,-500.0,0.00041369,14]
[354557491,1740574266647,-5919.93,0.00041369,14]
[354557492,1740574266657,-505.05846004,0.00041369,14]
[354557493,1740574266667,-500.0,0.00041369,14]
[354557494,1740574266676,-507.8078317,0.00041369,14]
[354557495,1740574266685,-3276.2,0.00041369,14]
[354557496,1740574266695,-5414.79,0.00041369,14]
[354557497,1740574266705,-500.0,0.00041369,14]
[354557498,1740574266715,-500.0,0.00041369,14]
[354557499,1740574266724,-500.0,0.00041369,14]
[354557500,1740574266734,-550.31906136,0.00041369,14]
[354557501,1740574266744,-501.26290549,0.00041369,14]
[354557502,1740574266753,-945.89,0.00041369,14]
[354557503,1740574266762,-920.1,0.00041369,14]
[354557504,1740574266772,-2184.97,0.00041369,14]
[354557505,1740574266782,-500.0,0.00041369,14]
[354557506,1740574266791,-439.25324514,0.00041369,14]
[354557507,1740574266801,-500.0,0.00041369,14]
[354557508,1740574266811,-511.42800548,0.00041369,14]
[354557509,1740574266820,-500.0,0.00041369,14]
[354557510,1740574266829,-2468.11,0.00041369,14]
[354557511,1740574266838,-500.0,0.00041369,14]
[354557512,1740574266848,-505.6946904,0.00041369,14]
[354557513,1740574266857,-559.5477381,0.00041369,14]
[354557514,1740574266870,-1431.42,0.00041369,14]
[354557515,1740574266879,-500.0,0.00041369,14]
[354557516,1740574266888,-573.79,0.00041369,14]
[354557517,1740574266898,-1690.54,0.00041369,14]
[354557518,1740574266908,-928.54,0.00041369,14]
[354557519,1740574266917,-500.0,0.00041369,14]
[354557520,1740574266927,-500.0,0.00041369,14]
[354557521,1740574266936,-1693.49,0.00041369,14]
[354557522,1740574266945,-500.0,0.00041369,14]
[354557523,1740574266954,-924.42,0.00041369,14]
[354557524,1740574266964,-1920.2,0.00041369,14]
[354557525,1740574266973,-2936.27,0.00041369,14]
[354557526,1740574266983,-2019.97,0.00041369,14]
[354557527,1740574266992,-500.0,0.00041369,14]
[354557528,1740574267001,-885.92,0.00041369,14]
[354557529,1740574267011,-1740.06,0.00041369,14]
[354557530,1740574267020,-500.0,0.00041369,14]
[354557531,1740574267030,-595.43,0.00041369,14]
[354557532,1740574267039,-3323.28,0.00041369,14]
[354557533,1740574267049,-500.0,0.00041369,14]
[354557534,1740574267058,-1099.11,0.00041369,14]
[354557535,1740574267067,-1839.18,0.00041369,14]
[354557536,1740574267076,-500.0,0.00041369,14]
[354557537,1740574267086,-483.52,0.00041369,14]
[354557538,1740574267096,-1378.77,0.00041369,14]
[354557539,1740574267105,-1462.14,0.00041369,14]
[354557540,1740574267119,-500.0,0.00041369,14]
[354557541,1740574267128,-3931.52,0.00041369,14]
[354557542,1740574267138,-500.0,0.00041369,14]
[354557543,1740574267147,-629.91,0.00041369,14]
[354557544,1740574267156,-784.79,0.00041369,14]
[354557545,1740574267166,-500.0,0.00041369,14]
[354557546,1740574267176,-3884.53,0.00041369,14]
[354557547,1740574267185,-812.59,0.00041369,14]
[354557548,1740574267194,-500.0,0.00041369,14]
[354557549,1740574267204,-2062.13,0.00041369,14]
[354557550,1740574267213,-501.3477332,0.00041369,14]
[354557551,1740574267223,-2508.51,0.00041369,14]
[354557552,1740574267232,-6201.34,0.00041369,14]
[354557553,1740574267241,-670.49,0.00041369,14]
[354557554,1740574267251,-500.0,0.00041369,14]
[354557555,1740574267260,-500.0,0.00041369,14]
[354557556,1740574267270,-2372.62,0.00041369,14]
[354557557,1740574267279,-1042.75,0.00041369,14]
[354557558,1740574267288,-3881.06,0.00041369,14]
[354557559,1740574267297,-1757.3,0.00041369,14]
[354557560,1740574267307,-1554.32,0.00041369,14]
[354557561,1740574267317,-635.83,0.00041369,14]
[354557562,1740574267327,-1141.43,0.00041369,14]
[354557563,1740574267337,-1541.28,0.00041369,7]
[354557564,1740574267346,-638.6983,0.000414,30]
[354557565,1740574267357,-828.13,0.000414,30]
[354557566,1740574267370,-9138.87,0.00041452,120]
[354557567,1740574267380,-200.0,0.00041506,7]
[354557568,1740574267389,-1734.29115119,0.00041543,15]
[354557569,1740574267400,-749.77,0.00041613,2]
[354557570,1740574267410,-500.0,0.00041642,14]
[354557571,1740574267420,-500.0,0.00041642,14]
[354557572,1740574267430,-500.0,0.00041642,14]
[354557573,1740574267439,-500.0,0.00041642,14]
[354557574,1740574267449,-1607.78,0.00041643,14]
[354557575,1740574267459,-500.0,0.00041643,14]
[354557576,1740574267469,-500.0,0.00041643,14]
[354557577,1740574267479,-500.0,0.00041643,14]
[354557578,1740574267488,-500.0,0.00041643,14]
[354557579,1740574267498,-500.0,0.00041643,14]
[354557580,1740574267508,-155.08676092,0.00041643,14]
[354557581,1740574267520,-502.21111562,0.00041643,14]
[354557582,1740574267530,-341.77925288,0.00041643,14]
[354557583,1740574267540,-734.2,0.00041643,14]
[354557584,1740574267551,-830.31,0.00041643,14]
[354557585,1740574267561,-677.29,0.00041643,14]
[354557586,1740574267571,-789.79,0.00041643,14]
[354557587,1740574267580,-500.0,0.00041643,14]
[354557588,1740574267590,-1015.78,0.00041643,14]
[354557589,1740574267601,-1057.26,0.00041643,14]
[354557590,1740574267613,-833.61,0.00041643,14]
[354557591,1740574267623,-500.0,0.00041643,14]
[354557592,1740574267633,-500.0,0.00041643,14]
[354557593,1740574267645,-500.0,0.00041643,14]
[354557594,1740574267655,-562.51346211,0.00041643,14]
[354557595,1740574267665,-1150.07,0.00041643,14]
[354557596,1740574267675,-1353.88,0.00041643,14]
[354557597,1740574267685,-1137.8,0.00041643,14]
[354557598,1740574267694,-500.0,0.00041643,14]
[354557599,1740574267704,-500.0,0.00041643,14]
[354557600,1740574267713,-500.0,0.00041643,14]
[354557601,1740574267722,-500.0,0.00041643,14]
[354557602,1740574267732,-631.9991178,0.00041643,14]
[354557603,1740574267742,-500.0,0.00041643,14]
[354557604,1740574267751,-753.0,0.00041643,14]
[354557605,1740574267761,-564.48,0.00041643,14]
[354557606,1740574267770,-500.0,0.00041643,14]
[354557607,1740574267780,-951.56,0.00041643,14]
[354557608,1740574267789,-500.0,0.00041643,14]
[354557609,1740574267799,-732.68,0.00041643,14]
[354557610,1740574267809,-500.0,0.00041643,14]
[354557611,1740574267819,-505.87357192,0.00041643,14]
[354557612,1740574267828,-500.0,0.00041643,14]
[354557613,1740574267838,-1097.25,0.00041643,14]
[354557614,1740574267847,-500.0,0.00041643,14]
[354557615,1740574267857,-500.0,0.00041643,14]
[354557616,1740574267868,-633.85,0.00041643,14]
[354557617,1740574267878,-1045.67,0.00041643,14]
[354557618,1740574267887,-500.0,0.00041643,14]
[354557619,1740574267897,-500.0,0.00041643,14]
[354557620,1740574267907,-500.0,0.00041643,14]
[354557621,1740574267916,-764.7,0.00041643,14]
[354557622,1740574267926,-500.0,0.00041643,14]
[354557623,1740574267935,-1466.5,0.00041643,14]
[354557624,1740574267945,-708.63,0.00041643,14]
[354557625,1740574267955,-984.59,0.00041643,14]
[354557626,1740574267967,-505.48692963,0.00041643,14]
[354557627,1740574267978,-970.4,0.00041643,14]
[354557628,1740574267988,-500.0,0.00041643,14]
[354557629,1740574267997,-828.29,0.00041643,14]
[354557630,1740574268007,-634.17100355,0.00041643,14]
[354557631,1740574268017,-829.73,0.00041643,14]
[354557632,1740574268027,-500.0,0.00041643,14]
[354557633,1740574268037,-500.0,0.00041643,14]
[354557634,1740574268047,-500.0,0.00041643,14]
[354557635,1740574268057,-868.65,0.00041643,14]
[354557636,1740574268067,-500.0,0.00041643,14]
[354557637,1740574268076,-819.15,0.00041643,14]
[354557638,1740574268087,-926.85,0.00041643,14]
[354557639,1740574268097,-500.0,0.00041643,14]
[354557640,1740574268108,-500.0,0.00041643,14]
[354557641,1740574268121,-500.0,0.00041643,14]
[354557642,1740574268130,-500.0,0.00041643,14]
[354557643,1740574268140,-835.34,0.00041643,14]
[354557644,1740574268150,-1623.59,0.00041643,14]
[354557645,1740574268162,-500.0,0.00041643,14]
[354557646,1740574268172,-518.13617829,0.00041643,120]
[354557647,1740574268182,-500.0,0.00041643,14]
[354557648,1740574268192,-500.0,0.00041643,14]
[354557649,1740574268202,-816.76,0.00041643,14]
[354557650,1740574268213,-593.47,0.00041643,14]
[354557651,1740574268223,-500.0,0.00041643,14]
[354557652,1740574268233,-500.0,0.00041643,14]
[354557653,1740574268243,-500.0,0.00041643,14]
[354557654,1740574268253,-500.0,0.00041643,14]
[354557655,1740574268263,-500.0,0.00041643,14]
[354557656,1740574268273,-2210.11,0.00041643,14]
[354557657,1740574268283,-567.73666538,0.00041643,14]
[354557658,1740574268293,-500.0,0.00041643,14]
[354557659,1740574268304,-543.81,0.00041643,14]
[354557660,1740574268315,-500.0,0.00041643,14]
[354557661,1740574268326,-500.0,0.00041643,14]
[354557662,1740574268337,-936.41,0.00041643,14]
[354557663,1740574268347,-500.0,0.00041643,14]
[354557664,1740574268357,-500.0,0.00041643,14]
[354557665,1740574268374,-500.0,0.00041643,14]
[354557666,1740574268384,-905.42,0.00041643,14]
[354557667,1740574268394,-825.65,0.00041643,14]
[354557668,1740574268404,-1514.4,0.00041643,14]
[354557669,1740574268414,-1645.92,0.00041643,14]
[354557670,1740574268425,-500.0,0.00041643,14]
[354557671,1740574268435,-1776.84,0.00041643,14]
[354557672,1740574268446,-1762.24,0.00041643,14]
[354557673,1740574268456,-500.0,0.00041643,14]
[354557674,1740574268468,-983.07,0.00041643,14]
[354557675,1740574268479,-856.64,0.00041643,14]
[354557676,1740574268490,-500.0,0.00041643,14]
[354557677,1740574268502,-1554.29,0.00041643,14]
[354557678,1740574268517,-500.0,0.00041643,14]
[354557679,1740574268533,-510.77804547,0.00041643,14]
[354557680,1740574268546,-500.0,0.00041643,14]
[354557681,1740574268557,-500.0,0.00041643,14]
[354557682,1740574268570,-674.92,0.00041643,14]
[354557683,1740574268582,-500.0,0.00041643,14]
[354557684,1740574268594,-774.16,0.00041643,14]
[354557685,1740574268605,-542.4,0.00041643,14]
[354557686,1740574268622,-514.29,0.00041643,14]
[354557687,1740574268634,-500.0,0.00041643,14]
[354557688,1740574268646,-500.0,0.00041643,14]
[354557689,1740574268658,-500.0,0.00041643,14]
[354557690,1740574268669,-500.0,0.00041643,14]
[354557691,1740574268681,-952.64,0.00041643,14]
[354557692,1740574268693,-580.19,0.00041643,14]
[354557693,1740574268704,-809.47,0.00041643,14]
[354557694,1740574268716,-1084.5,0.00041643,14]
[354557695,1740574268729,-500.0,0.00041643,14]
[354557696,1740574268740,-1314.59,0.00041643,14]
[354557697,1740574268752,-500.0,0.00041643,14]
[354557698,1740574268764,-500.0,0.00041643,14]
[354557699,1740574268776,-500.0,0.00041643,14]
[354557700,1740574268787,-500.0,0.00041643,14]
[354557701,1740574268798,-1351.39,0.00041643,14]
[354557702,1740574268809,-500.0,0.00041643,14]
[354557703,1740574268820,-518.05760218,0.00041643,14]
[354557704,1740574268831,-934.47,0.00041643,14]
[354557705,1740574268843,-500.0,0.00041643,30]
[354557706,1740574268854,-500.0,0.00041643,14]
[354557707,1740574268870,-1836.02,0.00041643,14]
[354557708,1740574268881,-1430.64,0.00041643,14]
[354557709,1740574268893,-500.0,0.00041643,14]
[354557710,1740574268903,-500.0,0.00041643,14]
[354557711,1740574268914,-1699.41,0.00041643,14]
[354557712,1740574268925,-500.0,0.00041643,14]
[354557713,1740574268935,-1145.9,0.00041643,14]
[354557714,1740574268945,-500.0,0.00041643,14]
[354557715,1740574268956,-500.0,0.00041643,14]
[354557716,1740574268966,-500.0,0.00041643,14]
[354557717,1740574268977,-500.0,0.00041643,14]
[354557718,1740574268987,-500.0,0.00041643,14]
[354557719,1740574268997,-1560.38,0.00041643,14]
[354557720,1740574269007,-500.0,0.00041643,14]
[354557721,1740574269017,-1035.66,0.00041643,14]
[354557722,1740574269027,-502.73586097,0.00041643,14]
[354557723,1740574269037,-510.17,0.00041643,14]
[354557724,1740574269048,-500.0,0.00041643,14]
[354557725,1740574269058,-521.2,0.00041643,14]
[354557726,1740574269071,-506.22050034,0.00041643,14]
[354557727,1740574269084,-1639.86,0.00041643,14]
[354557728,1740574269099,-535.09,0.00041643,14]
[354557729,1740574269109,-500.0,0.00041643,14]
[354557730,1740574269124,-500.0,0.00041643,14]
[354557731,1740574269134,-500.0,0.00041643,14]
[354557732,1740574269144,-509.40021234,0.00041643,14]
[354557733,1740574269154,-507.05547724,0.00041643,14]
[354557734,1740574269164,-500.0,0.00041643,14]
[354557735,1740574269176,-778.23,0.00041643,14]
[354557736,1740574269186,-1070.7,0.00041643,14]
[354557737,1740574269460,-500.0,0.00041643,14]
[354557738,1740574269471,-1301.52,0.00041643,14]
[354557739,1740574269480,-885.47,0.00041643,14]
[354557740,1740574269490,-1244.11,0.00041643,14]
[354557741,1740574269500,-538.60817287,0.00041643,14]
[354557742,1740574269510,-500.0,0.00041643,14]
[354557743,1740574269521,-1391.29,0.00041643,14]
[354557744,1740574269531,-500.0,0.00041643,14]
[354557745,1740574269541,-1021.32,0.00041643,14]
[354557746,1740574269552,-2512.52,0.00041643,14]
[354557747,1740574269567,-688.14,0.00041643,14]
[354557748,1740574269578,-500.0,0.00041643,14]
[354557749,1740574269589,-1058.45,0.00041643,14]
[354557750,1740574269599,-735.83,0.00041643,14]
[354557751,1740574269609,-536.27,0.00041643,14]
[354557752,1740574269622,-500.0,0.00041643,14]
[354557753,1740574269631,-500.0,0.00041643,14]
[354557754,1740574269641,-481.61249662,0.00041643,14]
[354557755,1740574269651,-818.48,0.00041643,14]
[354557756,1740574269660,-2175.93,0.00041643,14]
[354557757,1740574269670,-500.0,0.00041643,14]
[354557758,1740574269680,-500.0,0.00041643,14]
[354557759,1740574269689,-500.0,0.00041643,14]
[354557760,1740574269699,-1419.81,0.00041643,14]
[354557761,1740574269709,-500.0,0.00041643,14]
[354557762,1740574269718,-500.0,0.00041643,14]
[354557763,1740574269728,-500.0,0.00041643,14]
[354557764,1740574269738,-3148.61,0.00041643,14]
[354557765,1740574269747,-504.41400826,0.00041643,14]
[354557766,1740574269757,-694.45,0.00041643,14]
[354557767,1740574269767,-1187.47,0.00041643,14]
[354557768,1740574269776,-626.25,0.00041643,14]
[354557769,1740574269787,-500.0,0.00041643,14]
[354557770,1740574269797,-1084.14,0.00041643,14]
[354557771,1740574269807,-500.0,0.00041643,14]
[354557772,1740574269816,-1812.38,0.00041643,14]
[354557773,1740574269826,-1891.14,0.00041643,14]
[354557774,1740574269835,-500.0,0.00041643,14]
[354557775,1740574269845,-1496.71,0.00041643,14]
[354557776,1740574269855,-1498.69,0.00041643,14]
[354557777,1740574269866,-1483.3,0.00041643,14]
[354557778,1740574269875,-500.0,0.00041643,14]
[354557779,1740574269885,-1267.25,0.00041643,14]
[354557780,1740574269895,-1566.7,0.00041643,14]
[354557781,1740574269905,-812.56,0.00041643,14]
[354557782,1740574269915,-366.22724787,0.00041643,14]
[354557783,1740574269925,-1162.33,0.00041643,14]
[354557784,1740574269934,-847.91,0.00041643,14]
[354557785,1740574269944,-672.65,0.00041643,14]
[354557786,1740574269955,-500.0,0.00041643,14]
[354557787,1740574269964,-1999.54,0.00041643,14]
[354557788,1740574269973,-500.0,0.00041643,14]
[354557789,1740574269983,-2918.9,0.00041643,14]
[354557790,1740574269992,-500.0,0.00041643,14]
[354557791,1740574270002,-500.0,0.00041643,14]
[354557792,1740574270012,-2461.64,0.00041643,14]
[354557793,1740574270022,-2154.95,0.00041643,14]
[354557794,1740574270031,-1409.25,0.00041643,14]
[354557795,1740574270041,-500.0,0.00041643,14]
[354557796,1740574270050,-1195.51,0.00041643,14]
[354557797,1740574270060,-500.0,0.00041643,14]
[354557798,1740574270070,-500.0,0.00041643,14]
[354557799,1740574270079,-1319.88,0.00041643,14]
[354557800,1740574270089,-727.34,0.00041643,14]
[354557801,1740574270098,-1198.01,0.00041643,14]
[354557802,1740574270108,-634.29,0.00041643,14]
[354557803,1740574270121,-879.08,0.00041643,14]
[354557804,1740574270130,-1657.95,0.00041643,14]
[354557805,1740574270139,-1710.29,0.00041643,14]
[354557806,1740574270149,-2325.13,0.00041643,14]
[354557807,1740574270158,-500.0,0.00041643,14]
[354557808,1740574270168,-1131.2,0.00041643,14]
[354557809,1740574270178,-650.2,0.00041643,14]
[354557810,1740574270190,-2026.83,0.00041643,14]
[354557811,1740574270200,-1603.84,0.00041643,14]
[354557812,1740574270209,-1456.03,0.00041643,14]
[354557813,1740574270218,-500.0,0.00041643,14]
[354557814,1740574270228,-500.0,0.00041643,14]
[354557815,1740574270237,-638.24,0.00041643,14]
[354557816,1740574270247,-2246.07,0.00041643,14]
[354557817,1740574270256,-500.0,0.00041643,14]
[354557818,1740574270265,-743.99,0.00041643,14]
[354557819,1740574270275,-481.38343843,0.00041643,14]
[354557820,1740574270284,-971.18,0.00041643,14]
[354557821,1740574270293,-2523.94,0.00041643,14]
[354557822,1740574270303,-881.31,0.00041643,14]
[354557823,1740574270312,-1557.14,0.00041643,14]
[354557824,1740574270322,-1466.79,0.00041643,14]
[354557825,1740574270331,-1096.55,0.00041643,14]
[354557826,1740574270341,-602.01,0.00041643,14]